bitfinex/quotes_SOLUSD_20250422
["timestamp","ask_amount","ask_price","bid_price","bid_amount"]
[1745364533837,0.03,148.62,148.58,24.66782355]
[1745364534047,0.03,148.62,148.58,2.45840707]
[1745364534260,0.03,148.62,148.6,26.0]
[1745364534468,0.03,148.62,148.61,39.54941648]
[1745364534844,0.03,148.62,148.61,42.00782355]
[1745364535048,0.03,148.62,148.61,64.21724003]
[1745364536062,0.03,148.65,148.64,26.0]
[1745364536240,0.03,148.68,148.64,50.66782355]
[1745364536446,0.03,148.68,148.64,2.45840707]
[1745364536663,0.03,148.68,148.64,28.45840707]
[1745364537269,22.20941648,148.67,148.64,26.0]
[1745364537778,0.03,148.68,148.63,26.0]
[1745364537941,0.03,148.68,148.65,26.0]
[1745364538968,0.03,148.68,148.63,48.20941648]
[1745364539272,0.03,148.68,148.65,22.20941648]
[1745364539445,0.03,148.68,148.64,48.20941648]
[1745364539847,0.03,148.68,148.67,26.0]
[1745364540174,22.23941648,148.68,148.66,18.18]
[1745364540482,22.20941648,148.67,148.61,18.16]
[1745364540770,22.20941648,148.66,148.64,26.0]
[1745364540970,0.03,148.68,148.64,26.0]
[1745364541200,0.03,148.68,148.65,26.0]
[1745364541390,0.03,148.68,148.66,26.0]
[1745364541595,0.03,148.68,148.66,48.20941648]
[1745364541775,0.03,148.68,148.66,22.20941648]
[1745364542192,0.03,148.68,148.67,26.0]
[1745364542992,0.03,148.68,148.67,48.20941648]
[1745364543202,0.03,148.68,148.67,66.36941648]
[1745364543785,0.03,148.68,148.67,44.16]
[1745364543988,0.03,148.68,148.67,66.36941648]
[1745364544181,0.03,148.68,148.67,44.16]
[1745364544394,0.03,148.69,148.67,88.57883296]
[1745364544599,0.03,148.71,148.7,22.20941648]
[1745364545476,0.03,148.71,148.7,24.62919617]
[1745364545886,0.03,148.71,148.7,2.41977969]
[1745364546075,22.23941648,148.71,148.7,2.41977969]
[1745364546274,0.03,148.71,148.7,2.41977969]
[1745364546603,0.03,148.71,148.66,19.7184]
[1745364546604,22.23941648,148.71,148.66,18.16]
[1745364546902,22.20941648,148.67,148.66,18.16]
[1745364547078,22.20941648,148.67,148.61,18.16]
[1745364547279,22.20941648,148.63,148.61,18.16]
[1745364547477,22.20941648,148.64,148.61,18.16]
[1745364547880,22.20941648,148.62,148.55,5.29516462]
[1745364548173,18.64964886,148.67,148.56,40.36941648]
[1745364548400,22.20941648,148.62,148.56,18.16]
[1745364548708,22.20941648,148.6,148.56,18.16]
[1745364548907,22.20941648,148.6,148.59,26.0]
[1745364549107,18.64964886,148.65,148.56,40.36941648]
[1745364549305,32.9298866,148.6,148.56,18.16]
[1745364549499,32.9298866,148.59,148.58,26.0]
[1745364550003,32.9298866,148.59,148.56,18.16]
[1745364550303,6.0216,148.64,148.58,32.9298866]
[1745364550476,6.0216,148.69,148.63,26.0]
[1745364550677,12.74707382,148.69,148.63,26.0]
[1745364550878,6.0216,148.69,148.65,26.0]
[1745364551074,38.9514866,148.69,148.65,26.0]
[1745364551309,32.9298866,148.68,148.65,26.0]
[1745364551482,32.9298866,148.67,148.64,26.0]
[1745364551813,18.64964886,148.67,148.56,100.16]
[1745364551980,32.9298866,148.65,148.63,26.0]
[1745364552299,32.9298866,148.66,148.63,26.0]
[1745364552475,18.64964886,148.67,148.59,26.0]
[1745364552679,32.9298866,148.65,148.62,26.0]
[1745364552913,18.64964886,148.67,148.64,26.0]
[1745364553206,32.9298866,148.68,148.65,26.0]
[1745364553383,32.9298866,148.67,148.65,26.0]
[1745364553908,51.57953546,148.68,148.65,26.0]
[1745364554108,32.9298866,148.69,148.66,26.0]
[1745364554294,32.9298866,148.7,148.65,26.0]
[1745364554481,18.67964886,148.71,148.68,26.0]
[1745364554682,18.64964886,148.69,148.68,26.0]
[1745364555007,0.03,148.71,148.68,26.0]
[1745364555195,32.9598866,148.71,148.65,58.9298866]
[1745364555502,0.03,148.71,148.65,58.9298866]
[1745364556007,32.9598866,148.71,148.65,26.0]
[1745364556176,32.9598866,148.71,148.65,58.9298866]
[1745364556818,32.9298866,148.69,148.65,26.0]
[1745364557180,32.9298866,148.66,148.65,26.0]
[1745364557385,18.64964886,148.68,148.65,26.0]
[1745364557683,18.64964886,148.7,148.63,58.9298866]
[1745364557894,32.9298866,148.69,148.63,58.9298866]
[1745364558182,18.67964886,148.71,148.63,58.9298866]
[1745364558488,32.9298866,148.68,148.63,58.9298866]
[1745364558683,32.9298866,148.68,148.63,26.0]
[1745364558904,32.9298866,148.69,148.63,58.9298866]
[1745364559397,0.03,148.71,148.63,58.9298866]
[1745364559592,32.9298866,148.68,148.63,58.9298866]
[1745364559798,32.9298866,148.67,148.63,26.0]
[1745364560100,18.64964886,148.69,148.67,26.0]
[1745364560302,32.9298866,148.68,148.67,26.0]
[1745364560517,32.9298866,148.68,148.63,26.0]
[1745364560687,32.9298866,148.69,148.63,58.9298866]
[1745364560888,32.9298866,148.69,148.67,26.0]
[1745364561195,0.03,148.71,148.68,26.0]
[1745364562013,32.9298866,148.7,148.68,26.0]
[1745364563209,32.9598866,148.71,148.68,26.0]
[1745364563414,0.03,148.71,148.68,26.0]
[1745364563719,32.9598866,148.71,148.68,26.0]
[1745364563898,0.03,148.71,148.68,26.0]
[1745364564220,18.64964886,148.7,148.68,26.0]
[1745364564393,32.9298866,148.69,148.68,26.0]
[1745364564596,0.03,148.71,148.68,26.0]
[1745364564988,32.9298866,148.69,148.68,26.0]
[1745364565485,51.57953546,148.69,148.68,26.0]
[1745364565692,51.57953546,148.69,148.65,18.16]
[1745364565903,51.57953546,148.68,148.67,26.0]
[1745364566893,32.9298866,148.69,148.67,26.0]
[1745364567093,32.9298866,148.68,148.67,26.0]
[1745364567425,51.57953546,148.68,148.67,26.0]
[1745364567715,51.57953546,148.68,148.65,18.16]
[1745364567904,32.9298866,148.67,148.65,44.16]
[1745364568105,51.57953546,148.68,148.65,44.16]
[1745364568297,32.9298866,148.67,148.65,44.16]
[1745364568612,51.57953546,148.68,148.65,44.16]
[1745364569408,32.9298866,148.67,148.65,44.16]
[1745364569713,18.64964886,148.65,148.59,18.783]
[1745364569899,32.9298866,148.61,148.59,18.783]
[1745364570213,32.9298866,148.61,148.6,2.44959665]
[1745364570508,18.64964886,148.64,148.6,2.44959665]
[1745364570705,32.9298866,148.63,148.6,2.44959665]
[1745364570910,18.64964886,148.67,148.62,26.0]
[1745364571519,22.28020015,148.63,148.62,26.0]
[1745364572112,22.28020015,148.63,148.62,28.44959665]
[1745364573110,40.92984901,148.63,148.62,28.44959665]
[1745364574015,40.92984901,148.63,148.62,2.44959665]
[1745364574211,18.64964886,148.62,148.6,2.44959665]
[1745364574393,40.92984901,148.61,148.6,2.44959665]
[1745364574795,6.5554,148.68,148.6,2.44959665]
[1745364574998,22.28020015,148.68,148.63,22.28020015]
[1745364575194,22.28020015,148.7,148.65,26.0]
[1745364575391,22.28020015,148.68,148.64,26.0]
[1745364575720,22.28020015,148.67,148.64,26.0]
[1745364576215,22.28020015,148.67,148.62,48.28020015]
[1745364576520,22.28020015,148.67,148.65,28.44959665]
[1745364577012,0.03,148.84,148.73,26.0]
[1745364577314,0.03,148.84,148.81,26.0]
[1745364577610,0.03,148.84,148.82,2.44959665]
[1745364578422,22.31020015,148.84,148.78,48.28020015]
[1745364578609,22.31020015,148.84,148.82,26.0]
[1745364578610,0.03,148.84,148.82,26.0]
[1745364581129,0.03,148.84,148.78,26.0]
[1745364581440,22.31020015,148.83,148.78,26.0]
[1745364581636,22.28020015,148.82,148.79,26.0]
[1745364581815,22.28020015,148.8,148.79,26.0]
[1745364582006,22.28020015,148.81,148.79,26.0]
[1745364582626,22.28020015,148.82,148.79,26.0]
[1745364582837,0.03,148.83,148.77,48.28020015]
[1745364583009,0.03,148.83,148.79,26.0]
[1745364583529,0.03,148.83,148.79,48.28020015]
[1745364584038,0.03,148.83,148.78,26.0]
[1745364584209,0.03,148.83,148.79,22.28020015]
[1745364585023,0.03,148.83,148.78,48.28020015]
[1745364585201,0.03,148.83,148.78,26.0]
[1745364585401,22.28020015,148.82,148.78,26.0]
[1745364585607,22.28020015,148.82,148.74,18.72]
[1745364585608,22.28020015,148.82,148.8,26.0]
[1745364586603,22.28020015,148.82,148.77,22.28020015]
[1745364586809,22.28020015,148.8,148.74,18.72]
[1745364587008,0.03,148.83,148.76,22.28020015]
[1745364587208,22.28020015,148.81,148.76,22.28020015]
[1745364587414,22.28020015,148.81,148.77,26.0]
[1745364587816,0.03,148.83,148.77,26.0]
[1745364588134,22.28020015,148.81,148.77,26.0]
[1745364588834,0.03,148.83,148.78,22.28020015]
[1745364589008,22.31020015,148.83,148.78,48.28020015]
[1745364589504,0.03,148.83,148.79,22.28020015]
[1745364589705,0.03,148.83,148.78,48.28020015]
[1745364589939,22.31020015,148.83,148.78,26.0]
[1745364590828,0.03,148.83,148.79,22.28020015]
[1745364591027,0.03,148.83,148.82,44.5604003]
[1745364591327,0.03,148.86,148.85,26.0]
[1745364591529,0.03,148.86,148.85,48.28020015]
[1745364592928,0.03,148.86,148.8,26.4523]
[1745364593115,0.03,148.86,148.83,48.28020015]
[1745364593318,0.03,148.86,148.84,22.28020015]
[1745364594940,0.03,148.86,148.85,22.28020015]
[1745364595130,0.063,148.89,148.88,48.28020015]
[1745364597345,0.063,148.89,148.88,26.0]
[1745364598342,18.64964886,148.88,148.78,230.34]
[1745364598542,18.64964886,148.88,148.77,24.5958]
[1745364598543,22.28020015,148.81,148.77,18.04]
[1745364598852,22.28020015,148.79,148.77,18.04]
[1745364599015,22.28020015,148.78,148.73,22.28020015]
[1745364599225,22.28020015,148.78,148.76,26.0]
[1745364599545,22.28020015,148.78,148.75,26.0]
[1745364599915,22.28020015,148.78,148.72,41.02020015]
[1745364599916,22.28020015,148.82,148.76,22.28020015]
[1745364600146,22.28020015,148.81,148.75,22.28020015]
[1745364600343,40.92984901,148.82,148.72,18.74]
[1745364600645,22.28020015,148.78,148.76,26.0]
[1745364600851,40.92984901,148.82,148.76,26.0]
[1745364601252,22.28020015,148.77,148.76,26.0]
[1745364601441,32.85710959,148.77,148.76,26.0]
[1745364601626,32.85710959,148.77,148.72,51.59710959]
[1745364601834,32.85710959,148.77,148.72,18.74]
[1745364602147,32.85710959,148.77,148.75,26.0]
[1745364602452,32.85710959,148.78,148.75,26.0]
[1745364602827,32.85710959,148.76,148.72,18.74]
[1745364603048,18.64964886,148.78,148.72,18.74]
[1745364603356,18.64964886,148.8,148.71,0.063]
[1745364603550,32.85710959,148.76,148.73,26.0]
[1745364603756,32.85710959,148.75,148.72,26.0]
[1745364603964,32.85710959,148.77,148.74,26.0]
[1745364604253,18.64964886,148.8,148.74,26.0]
[1745364604457,32.85710959,148.77,148.72,58.85710959]
[1745364604629,32.85710959,148.77,148.72,26.0]
[1745364604834,32.85710959,148.78,148.72,58.85710959]
[1745364605365,32.85710959,148.79,148.76,26.0]
[1745364606059,18.64964886,148.85,148.79,26.0]
[1745364606360,32.85710959,148.83,148.79,26.0]
[1745364606547,32.85710959,148.83,148.8,26.0]
[1745364607265,18.64964886,148.85,148.79,58.85710959]
[1745364607468,0.063,148.89,148.87,26.0]
[1745364607636,0.063,148.89,148.88,18.76]
[1745364608358,0.063,148.89,148.82,283.90261194]
[1745364608663,32.92010959,148.89,148.85,26.0]
[1745364608888,32.85710959,148.86,148.78,1.551]
[1745364609108,32.85710959,148.84,148.79,32.85710959]
[1745364609560,32.85710959,148.83,148.78,32.85710959]
[1745364609764,32.85710959,148.83,148.81,26.0]
[1745364610171,32.85710959,148.82,148.73,1.551]
[1745364610471,32.85710959,148.79,148.71,6.3783]
[1745364610674,32.85710959,148.79,148.74,32.85710959]
[1745364611293,44.64964886,148.85,148.75,32.85710959]
[1745364611475,32.85710959,148.8,148.75,32.85710959]
[1745364611794,32.85710959,148.82,148.77,32.85710959]
[1745364611990,32.85710959,148.83,148.78,26.0]
[1745364612166,18.64964886,148.87,148.79,32.85710959]
[1745364612363,6.1986,148.88,148.82,26.0]
[1745364612566,18.64964886,148.88,148.84,26.0]
[1745364613096,32.85710959,148.87,148.85,26.0]
[1745364613594,0.063,148.89,148.85,32.85710959]
[1745364613760,0.063,148.89,148.86,58.85710959]
[1745364613963,0.063,148.89,148.86,26.0]
[1745364614975,0.063,148.89,148.86,58.85710959]
[1745364615278,32.92010959,148.89,148.86,26.0]
[1745364615483,18.64964886,148.86,148.74,1.6385]
[1745364615666,32.85710959,148.83,148.77,32.85710959]
[1745364615998,32.85710959,148.83,148.8,26.0]
[1745364616165,32.85710959,148.83,148.74,22.41533165]
[1745364616366,32.85710959,148.83,148.78,32.85710959]
[1745364616566,32.85710959,148.84,148.81,26.0]
[1745364616868,32.85710959,148.84,148.82,26.0]
[1745364617686,0.063,148.89,148.83,26.0]
[1745364617892,32.85710959,148.88,148.84,26.0]
[1745364618387,0.063,148.89,148.84,26.0]
[1745364618559,32.85710959,148.88,148.84,26.0]
[1745364619275,0.063,148.89,148.84,26.0]
[1745364619474,18.64964886,148.88,148.84,26.0]
[1745364619680,51.50675845,148.88,148.84,26.0]
[1745364619884,32.92010959,148.89,148.84,58.85710959]
[1745364620062,18.71264886,148.89,148.85,26.0]
[1745364620688,0.063,148.89,148.86,26.0]
[1745364621078,0.063,148.89,148.88,26.0]
[1745364621794,0.063,148.89,148.85,26.0]
[1745364621970,0.063,148.89,148.88,26.0]
[1745364622780,0.063,148.89,148.85,26.0]
[1745364622989,32.85710959,148.87,148.85,26.0]
[1745364623282,32.85710959,148.86,148.79,32.85710959]
[1745364623471,32.85710959,148.86,148.82,26.0]
[1745364623671,32.85710959,148.86,148.81,32.85710959]
[1745364624166,32.85710959,148.86,148.82,2.44056976]
[1745364624383,0.063,148.89,148.82,35.29767935]
[1745364624592,18.64964886,148.86,148.85,26.0]
[1745364624899,0.063,148.89,148.85,26.0]
[1745364625089,32.85710959,148.88,148.85,26.0]
[1745364625394,32.85710959,148.87,148.79,26.0]
[1745364625574,32.85710959,148.87,148.85,26.0]
[1745364625891,32.85710959,148.88,148.85,26.0]
[1745364627188,0.063,148.89,148.84,58.85710959]
[1745364627501,51.50675845,148.85,148.79,32.85710959]
[1745364627797,32.85710959,148.84,148.78,32.85710959]
[1745364628184,32.85710959,148.83,148.77,32.85710959]
[1745364628386,32.85710959,148.83,148.8,26.0]
[1745364628590,32.85710959,148.82,148.77,32.85710959]
[1745364628791,18.64964886,148.85,148.81,26.0]
[1745364628966,32.85710959,148.83,148.81,26.0]
[1745364629166,32.85710959,148.84,148.81,26.0]
[1745364629367,32.85710959,148.83,148.81,26.0]
[1745364629568,34.58480959,148.89,148.82,26.0]
[1745364629791,32.85710959,148.85,148.83,26.0]
[1745364629982,18.64964886,148.88,148.83,26.0]
[1745364630181,18.64964886,148.86,148.83,26.0]
[1745364630590,18.64964886,148.86,148.81,32.85710959]
[1745364630793,18.64964886,148.88,148.82,28.43919672]
[1745364631005,32.85710959,148.88,148.83,58.85710959]
[1745364631383,0.063,148.89,148.86,26.0]
[1745364631697,32.92010959,148.89,148.86,26.0]
[1745364631990,0.063,148.89,148.86,26.0]
[1745364632299,0.063,148.89,148.84,32.85710959]
[1745364632595,32.92010959,148.89,148.87,26.0]
[1745364632988,0.063,148.89,148.87,26.0]
[1745364633597,32.92010959,148.89,148.83,26.0]
[1745364633793,32.92010959,148.89,148.87,26.0]
[1745364634876,32.92010959,148.89,148.86,26.0]
[1745364634877,0.063,148.89,148.86,26.0]
[1745364635901,0.063,148.89,148.88,26.0]
[1745364639504,22.26329035,148.89,148.85,26.0]
[1745364639706,22.26329035,148.89,148.81,18.42]
[1745364640008,22.26329035,148.89,148.86,26.0]
[1745364640690,22.20029035,148.88,148.81,18.42]
[1745364641000,22.20029035,148.88,148.85,26.0]
[1745364641505,22.20029035,148.87,148.85,26.0]
[1745364642911,0.063,148.89,148.85,26.0]
[1745364643102,22.26329035,148.89,148.86,26.0]
[1745364644289,0.063,148.89,148.86,22.20029035]
[1745364645008,0.063,148.89,148.85,48.20029035]
[1745364645705,0.063,148.89,148.86,2.44020691]
[1745364645902,0.063,148.89,148.88,26.0]
[1745364646217,0.063,148.89,148.87,22.20029035]
[1745364646397,0.063,148.89,148.85,26.0]
[1745364646592,0.063,148.89,148.87,22.20029035]
[1745364647115,0.063,148.89,148.88,22.20029035]
[1745364647812,0.063,148.89,148.88,24.63880506]
[1745364649120,0.063,148.92,148.9,26.0]
[1745364649307,0.063,148.95,148.91,28.43851471]
[1745364649504,0.063,148.95,148.91,50.63880506]
[1745364649901,0.063,148.95,148.91,2.43851471]
[1745364650122,0.063,148.95,148.92,2.43851471]
[1745364650326,0.063,148.95,148.94,26.0]
[1745364650632,0.063,148.95,148.93,26.0]
[1745364650918,22.26329035,148.95,148.93,26.0]
[1745364651120,0.063,148.95,148.93,26.0]
[1745364651908,0.063,148.95,148.94,26.0]
[1745364653526,0.063,148.95,148.92,48.20029035]
[1745364655435,0.063,148.95,148.92,26.0]
[1745364655733,0.063,148.95,148.93,2.43351423]
[1745364655915,40.84993921,148.94,148.93,2.43351423]
[1745364656233,40.84993921,148.94,148.9,26.0]
[1745364656419,0.063,148.95,148.9,22.20029035]
[1745364656826,0.063,148.95,148.91,22.20029035]
[1745364657027,40.91293921,148.95,148.93,26.0]
[1745364657812,22.20029035,148.94,148.93,26.0]
[1745364658010,22.26329035,148.95,148.9,22.20029035]
[1745364658808,22.26329035,148.95,148.89,48.20029035]
[1745364659409,22.26329035,148.95,148.9,2.43459433]
[1745364659835,0.063,148.95,148.94,26.0]
[1745364660341,22.26329035,148.95,148.94,26.0]
[1745364660629,22.26329035,148.95,148.92,26.0]
[1745364660839,22.20029035,148.93,148.92,26.0]
[1745364661019,22.20029035,148.93,148.87,48.20029035]
[1745364661229,22.20029035,148.91,148.84,24.6204]
[1745364661609,22.20029035,148.91,148.88,26.0]
[1745364662245,22.20029035,148.89,148.87,26.0]
[1745364662531,22.20029035,148.88,148.81,6.6297]
[1745364662737,22.20029035,148.87,148.84,26.0]
[1745364663034,22.20029035,148.85,148.82,2.44006106]
[1745364663244,22.20029035,148.83,148.82,2.44006106]
[1745364663619,22.20029035,148.84,148.79,22.20029035]
[1745364663814,22.20029035,148.83,148.78,22.20029035]
[1745364664247,22.20029035,148.82,148.79,2.44216092]
[1745364664550,22.20029035,148.83,148.78,22.20029035]
[1745364664758,6.05,148.85,148.79,48.20029035]
[1745364665067,22.20029035,148.86,148.81,48.20029035]
[1745364665410,25.3666016,148.88,148.77,0.063]
[1745364665411,22.20029035,148.84,148.78,26.0]
[1745364665619,22.20029035,148.84,148.79,2.44218124]
[1745364665836,22.20029035,148.83,148.79,2.44218124]
[1745364666008,22.20029035,148.84,148.79,24.64247159]
[1745364666211,18.64964886,148.88,148.82,22.20029035]
[1745364666430,18.64964886,148.88,148.83,26.0]
[1745364666612,40.84993921,148.88,148.83,26.0]
[1745364666813,22.20029035,148.87,148.8,2.44218124]
[1745364667014,22.20029035,148.86,148.84,26.0]
[1745364667241,22.20029035,148.85,148.84,26.0]
[1745364667442,40.84993921,148.85,148.82,26.0]
[1745364667646,22.20029035,148.83,148.81,2.44218124]
[1745364667943,18.64964886,148.87,148.81,2.44218124]
[1745364668128,18.64964886,148.83,148.78,26.063]
[1745364668323,40.84993921,148.83,148.78,48.26329035]
[1745364668531,40.84993921,148.83,148.78,22.26329035]
[1745364668743,40.84993921,148.83,148.78,48.26329035]
[1745364669256,40.84993921,148.83,148.79,2.44065342]
[1745364669459,22.20029035,148.82,148.79,2.44065342]
[1745364669643,22.20029035,148.81,148.79,2.44065342]
[1745364669956,22.20029035,148.8,148.79,2.44065342]
[1745364670129,22.20029035,148.8,148.78,26.063]
[1745364670130,22.20029035,148.8,148.78,0.063]
[1745364670335,25.36878008,148.83,148.78,0.063]
[1745364670557,22.20029035,148.8,148.78,26.063]
[1745364670760,25.36878008,148.83,148.78,26.063]
[1745364670933,22.20029035,148.8,148.78,26.063]
[1745364671647,22.20029035,148.8,148.78,0.063]
[1745364672161,22.20029035,148.81,148.78,0.063]
[1745364672454,25.36875033,148.83,148.78,0.063]
[1745364672662,22.20029035,148.8,148.78,0.063]
[1745364673861,6.71962278,148.82,148.78,0.063]
[1745364674251,22.20029035,148.8,148.78,0.063]
[1745364676161,63.05022956,148.79,148.68,0.063]
[1745364676369,40.84993921,148.73,148.68,0.063]
[1745364677343,47.31493921,148.73,148.68,0.063]
[1745364677646,18.64964886,148.72,148.68,0.063]
[1745364677970,47.57398439,148.72,148.68,0.063]
[1745364678744,20.22464886,148.7,148.68,0.063]
[1745364678946,18.64964886,148.68,148.66,0.063]
[1745364679252,18.64964886,148.66,148.63,0.063]
[1745364679456,40.84993921,148.64,148.63,0.063]
[1745364679651,69.43712956,148.64,148.63,0.063]
[1745364679854,53.96450336,148.64,148.63,0.063]
[1745364680156,47.23683921,148.64,148.63,0.063]
[1745364680351,22.20029035,148.64,148.63,0.063]
[1745364680883,40.84993921,148.64,148.63,0.063]
[1745364681971,47.57760336,148.64,148.63,0.063]
[1745364683974,25.37731301,148.64,148.63,0.063]
[1745364684172,47.57760336,148.64,148.63,0.063]
[1745364684757,69.77789371,148.64,148.63,0.063]
[1745364684975,40.84993921,148.63,148.62,0.063]
[1745364686056,69.77834636,148.63,148.62,0.063]
[1745364687081,6.6332,148.62,148.57,0.063]
[1745364687277,40.84993921,148.6,148.57,0.063]
[1745364687686,40.84993921,148.58,148.57,0.063]
[1745364688984,18.64964886,148.58,148.57,0.063]
[1745364689282,40.84993921,148.58,148.57,0.063]
[1745364689447,22.20029035,148.58,148.57,0.063]
[1745364690761,40.84993921,148.58,148.57,0.063]
[1745364692551,47.58032014,148.58,148.57,0.063]
[1745364693456,40.84993921,148.58,148.57,0.063]
[1745364693781,47.58032014,148.58,148.57,0.063]
[1745364696379,40.84993921,148.58,148.57,0.063]
[1745364696557,47.58032014,148.58,148.57,0.063]
[1745364697656,18.64964886,148.57,148.56,0.063]
[1745364697880,40.84993921,148.57,148.56,0.063]
[1745364698759,63.05022956,148.57,148.56,0.063]
[1745364698972,63.05022956,148.57,148.53,0.063]
[1745364699188,63.05022956,148.54,148.53,0.063]
[1745364700087,40.84993921,148.54,148.53,0.063]
[1745364700696,22.20029035,148.54,148.53,0.063]
[1745364700910,22.20029035,148.55,148.53,0.063]
[1745364701099,18.64964886,148.56,148.53,0.063]
[1745364701401,22.20029035,148.57,148.53,26.063]
[1745364701707,22.20029035,148.56,148.53,26.063]
[1745364702004,22.20029035,148.56,148.53,0.063]
[1745364703215,22.20029035,148.55,148.53,0.063]
[1745364703374,25.38249396,148.53,148.51,0.063]
[1745364703575,18.64964886,148.51,148.47,0.063]
[1745364703779,63.05022956,148.49,148.47,0.063]
[1745364704284,63.05022956,148.48,148.42,0.063]
[1745364704484,22.20029035,148.43,148.42,26.063]
[1745364704882,22.20029035,148.43,148.42,0.063]
[1745364705996,40.84993921,148.43,148.42,0.063]
[1745364706775,47.58712172,148.43,148.42,0.063]
[1745364706978,40.84993921,148.43,148.42,0.063]
[1745364707197,47.58712172,148.43,148.42,0.063]
[1745364707794,40.84993921,148.43,148.42,0.063]
[1745364708694,25.3855301,148.46,148.42,0.063]
[1745364708896,22.20029035,148.43,148.42,0.063]
[1745364709782,47.58712172,148.43,148.42,0.063]
[1745364709989,40.84993921,148.43,148.42,0.063]
[1745364710182,22.20029035,148.43,148.42,0.063]
[1745364712702,28.93580036,148.47,148.42,0.063]
[1745364712919,22.20029035,148.45,148.42,0.063]
[1745364713106,18.64964886,148.46,148.42,0.063]
[1745364713618,22.20029035,148.44,148.42,0.063]
[1745364713784,22.20029035,148.43,148.42,0.063]
[1745364717005,40.84993921,148.43,148.42,0.063]
[1745364717208,47.58712172,148.43,148.42,0.063]
[1745364717910,18.64964886,148.43,148.42,0.063]
[1745364718110,22.20029035,148.43,148.42,0.063]
[1745364718613,47.58712172,148.43,148.42,0.063]
[1745364720318,40.84993921,148.43,148.42,0.063]
[1745364721519,47.58712172,148.43,148.42,0.063]
[1745364722308,40.84993921,148.43,148.42,0.063]
[1745364723015,6.73614446,148.46,148.42,0.063]
[1745364723217,22.20029035,148.43,148.42,0.063]
[1745364723517,6.73309991,148.52,148.45,26.0]
[1745364723813,6.79575236,148.53,148.46,22.20029035]
[1745364724018,22.20029035,148.52,148.46,22.20029035]
[1745364724204,22.20029035,148.52,148.47,22.20029035]
[1745364724510,22.26329035,148.53,148.47,22.20029035]
[1745364724722,22.20029035,148.52,148.47,22.20029035]
[1745364725213,0.063,148.53,148.5,22.20029035]
[1745364725420,0.063,148.53,148.49,13.94138977]
[1745364725588,14.00438977,148.53,148.47,39.94138977]
[1745364725793,14.00438977,148.53,148.47,26.0]
[1745364725794,13.94138977,148.52,148.47,26.0]
[1745364726009,13.94138977,148.51,148.47,26.0]
[1745364726412,13.94138977,148.52,148.47,26.0]
[1745364726895,13.94138977,148.5,148.47,26.0]
[1745364727289,22.32300871,148.5,148.47,26.0]
[1745364727703,18.64964886,148.51,148.47,26.0]
[1745364727916,40.97265757,148.51,148.47,26.0]
[1745364728216,22.32300871,148.52,148.47,48.32300871]
[1745364728624,41.03565757,148.53,148.47,48.32300871]
[1745364729500,22.32300871,148.51,148.49,26.0]
[1745364729921,22.32300871,148.5,148.46,16.96]
[1745364730125,22.32300871,148.49,148.45,26.0]
[1745364730308,22.32300871,148.5,148.44,28.50720871]
[1745364730619,22.32300871,148.5,148.47,26.0]
[1745364730793,22.32300871,148.49,148.47,26.0]
[1745364731306,22.32300871,148.48,148.44,6.1842]
[1745364731504,22.32300871,148.46,148.42,0.063]
[1745364731703,22.32300871,148.43,148.42,0.063]
[1745364734616,63.29566628,148.43,148.42,0.063]
[1745364734815,47.70984008,148.43,148.42,0.063]
[1745364737804,18.64964886,148.42,148.38,0.03]
[1745364738023,40.97265757,148.39,148.38,0.03]
[1745364738531,47.71165615,148.39,148.38,0.03]
[1745364740713,25.38910161,148.38,148.37,0.03]
[1745364740924,47.71211032,148.38,148.37,0.03]